Workbook

Sheet มกราคม
A1: มกราคม
A2: การขายแบบออนไลน์ | C2: รหัส การประมูล | D2: คำอธิบาย รายการ | E2: ราคา ซื้อ | F2: ราคาขาย | G2: ค่าธรรมเนียมออนไลน์ | H2: ค่าธรรมเนียม PayPal | I2: ค่าธรรมเนียม บัตรเครดิต | J2: ค่า จัดส่ง | K2: ค่าธรรมเนียม การจัดส่ง | L2: กำไร/ขาดทุน ยอดขาย | M2: กำไร/ขาดทุน การจัดส่ง | N2: กำไร/ขาดทุน ผลรวม
A3: ปี | C3: TS001 | D3: รายการ 1 | E3: ฿ 5.00 | F3: ฿ 4.00 | G3: ฿ 2.00 | H3: ฿ 1.50 | I3: ฿ 0.00 | J3: ฿ 4.00 | K3: ฿ 2.00 | L3: =IFERROR(ยอดขายเดือนมกราคม[ราคาขาย]-(ยอดขายเดือนมกราคม[ราคา ซื้อ]+ยอดขายเดือนมกราคม[ค่าธรรมเนียมออนไลน์]+ยอดขายเดือนมกราคม[ค่าธรรมเนียม PayPal]+ยอดขายเดือนมกราคม[ค่าธรรมเนียม บัตรเครดิต]),"") -> (฿ 4.50) | M3: =ยอดขายเดือนมกราคม[ค่า จัดส่ง]-ยอดขายเดือนมกราคม[ค่าธรรมเนียม การจัดส่ง] -> ฿ 2.00 | N3: =ยอดขายเดือนมกราคม[กำไร/ขาดทุน ยอดขาย]+ยอดขายเดือนมกราคม[กำไร/ขาดทุน การจัดส่ง] -> (฿ 2.50)
A4: 2555 | C4: TP004 | D4: รายการ 2 | E4: ฿ 2.00 | F4: ฿ 30.00 | G4: ฿ 0.50 | H4: ฿ 0.50 | J4: ฿ 4.00 | K4: ฿ 5.50 | L4: =IFERROR(ยอดขายเดือนมกราคม[ราคาขาย]-(ยอดขายเดือนมกราคม[ราคา ซื้อ]+ยอดขายเดือนมกราคม[ค่าธรรมเนียมออนไลน์]+ยอดขายเดือนมกราคม[ค่าธรรมเนียม PayPal]+ยอดขายเดือนมกราคม[ค่าธรรมเนียม บัตรเครดิต]),"") -> ฿ 27.00 | M4: =ยอดขายเดือนมกราคม[ค่า จัดส่ง]-ยอดขายเดือนมกราคม[ค่าธรรมเนียม การจัดส่ง] -> (฿ 1.50) | N4: =ยอดขายเดือนมกราคม[กำไร/ขาดทุน ยอดขาย]+ยอดขายเดือนมกราคม[กำไร/ขาดทุน การจัดส่ง] -> ฿ 25.50
C5: RS99 | D5: รายการ 3 | E5: ฿ 17.00 | F5: ฿ 23.00 | G5: ฿ 2.00 | I5: ฿ 2.00 | J5: ฿ 3.00 | K5: ฿ 2.00 | L5: =IFERROR(ยอดขายเดือนมกราคม[ราคาขาย]-(ยอดขายเดือนมกราคม[ราคา ซื้อ]+ยอดขายเดือนมกราคม[ค่าธรรมเนียมออนไลน์]+ยอดขายเดือนมกราคม[ค่าธรรมเนียม PayPal]+ยอดขายเดือนมกราคม[ค่าธรรมเนียม บัตรเครดิต]),"") -> ฿ 2.00 | M5: =ยอดขายเดือนมกราคม[ค่า จัดส่ง]-ยอดขายเดือนมกราคม[ค่าธรรมเนียม การจัดส่ง] -> ฿ 1.00 | N5: =ยอดขายเดือนมกราคม[กำไร/ขาดทุน ยอดขาย]+ยอดขายเดือนมกราคม[กำไร/ขาดทุน การจัดส่ง] -> ฿ 3.00
A6: กำไร/ขาดทุน ผลรวม | C6: ST001 | D6: รายการ 4 | E6: ฿ 120.00 | F6: ฿ 180.00 | G6: ฿ 2.00 | H6: ฿ 1.50 | J6: ฿ 3.00 | K6: ฿ 2.00 | L6: =IFERROR(ยอดขายเดือนมกราคม[ราคาขาย]-(ยอดขายเดือนมกราคม[ราคา ซื้อ]+ยอดขายเดือนมกราคม[ค่าธรรมเนียมออนไลน์]+ยอดขายเดือนมกราคม[ค่าธรรมเนียม PayPal]+ยอดขายเดือนมกราคม[ค่าธรรมเนียม บัตรเครดิต]),"") -> ฿ 56.50 | M6: =ยอดขายเดือนมกราคม[ค่า จัดส่ง]-ยอดขายเดือนมกราคม[ค่าธรรมเนียม การจัดส่ง] -> ฿ 1.00 | N6: =ยอดขายเดือนมกราคม[กำไร/ขาดทุน ยอดขาย]+ยอดขายเดือนมกราคม[กำไร/ขาดทุน การจัดส่ง] -> ฿ 57.50
A7: =ยอดขายเดือนมกราคม[[#Totals],[กำไร/ขาดทุน ผลรวม]] -> ฿89.00 | C7: ST001 | D7: รายการ 5 | E7: ฿ 10.00 | F7: ฿ 12.00 | G7: ฿ 2.00 | H7: ฿ 1.50 | J7: ฿ 14.00 | K7: ฿ 7.00 | L7: =IFERROR(ยอดขายเดือนมกราคม[ราคาขาย]-(ยอดขายเดือนมกราคม[ราคา ซื้อ]+ยอดขายเดือนมกราคม[ค่าธรรมเนียมออนไลน์]+ยอดขายเดือนมกราคม[ค่าธรรมเนียม PayPal]+ยอดขายเดือนมกราคม[ค่าธรรมเนียม บัตรเครดิต]),"") -> (฿ 1.50) | M7: =ยอดขายเดือนมกราคม[ค่า จัดส่ง]-ยอดขายเดือนมกราคม[ค่าธรรมเนียม การจัดส่ง] -> ฿ 7.00 | N7: =ยอดขายเดือนมกราคม[กำไร/ขาดทุน ยอดขาย]+ยอดขายเดือนมกราคม[กำไร/ขาดทุน การจัดส่ง] -> ฿ 5.50
C8: Total | D8: ="รายการที่ขายได้: "&SUBTOTAL(103,ยอดขายเดือนมกราคม[คำอธิบาย รายการ]) -> รายการที่ขายได้: 5 | E8: =SUBTOTAL(109,ยอดขายเดือนมกราคม[ราคา ซื้อ]) -> ฿ 154.00 | F8: =SUBTOTAL(109,ยอดขายเดือนมกราคม[ราคาขาย]) -> ฿ 249.00 | G8: =SUBTOTAL(109,ยอดขายเดือนมกราคม[ค่าธรรมเนียมออนไลน์]) -> ฿ 8.50 | H8: =SUBTOTAL(109,ยอดขายเดือนมกราคม[ค่าธรรมเนียม PayPal]) -> ฿ 5.00 | I8: =SUBTOTAL(109,ยอดขายเดือนมกราคม[ค่าธรรมเนียม บัตรเครดิต]) -> ฿ 2.00 | J8: =SUBTOTAL(109,ยอดขายเดือนมกราคม[ค่า จัดส่ง]) -> ฿ 28.00 | K8: =SUBTOTAL(109,ยอดขายเดือนมกราคม[ค่าธรรมเนียม การจัดส่ง]) -> ฿ 18.50 | L8: =SUBTOTAL(109,ยอดขายเดือนมกราคม[กำไร/ขาดทุน ยอดขาย]) -> ฿ 79.50 | M8: =SUBTOTAL(109,ยอดขายเดือนมกราคม[กำไร/ขาดทุน การจัดส่ง]) -> ฿ 9.50 | N8: =SUBTOTAL(109,ยอดขายเดือนมกราคม[กำไร/ขาดทุน ผลรวม]) -> ฿ 89.00
A9: กำไร/ขาดทุน แนวโน้ม

Sheet กุมภาพันธ์
A1: กุมภาพันธ์
A2: การขายแบบออนไลน์ | C2: รหัส การประมูล | D2: คำอธิบาย รายการ | E2: ราคา ซื้อ | F2: ราคาขาย | G2: ค่าธรรมเนียมออนไลน์ | H2: ค่าธรรมเนียม PayPal | I2: ค่าธรรมเนียม บัตรเครดิต | J2: ค่า จัดส่ง | K2: ค่าธรรมเนียม การจัดส่ง | L2: กำไร/ขาดทุน ยอดขาย | M2: กำไร/ขาดทุน การจัดส่ง | N2: กำไร/ขาดทุน ผลรวม
A3: ปี | C3: TS020 | D3: รายการ 1 | E3: ฿ 10.00 | F3: ฿ 175.00 | G3: ฿ 3.00 | H3: ฿ 1.50 | I3: ฿ 0.00 | J3: ฿ 7.00 | K3: ฿ 5.00 | L3: =IFERROR(ยอดขายเดือนกุมภาพันธ์[ราคาขาย]-(ยอดขายเดือนกุมภาพันธ์[ราคา ซื้อ]+ยอดขายเดือนกุมภาพันธ์[ค่าธรรมเนียมออนไลน์]+ยอดขายเดือนกุมภาพันธ์[ค่าธรรมเนียม PayPal]+ยอดขายเดือนกุมภาพันธ์[ค่าธรรมเนียม บัตรเครดิต]),"") -> ฿ 160.50 | M3: =ยอดขายเดือนกุมภาพันธ์[ค่า จัดส่ง]-ยอดขายเดือนกุมภาพันธ์[ค่าธรรมเนียม การจัดส่ง] -> ฿ 2.00 | N3: =ยอดขายเดือนกุมภาพันธ์[กำไร/ขาดทุน ยอดขาย]+ยอดขายเดือนกุมภาพันธ์[กำไร/ขาดทุน การจัดส่ง] -> ฿ 162.50
A4: =SalesYear -> 2555 | C4: TS021 | D4: รายการ 2 | E4: ฿ 32.00 | F4: ฿ 100.00 | G4: ฿ 3.00 | I4: ฿ 3.20 | J4: ฿ 20.00 | K4: ฿ 13.00 | L4: =IFERROR(ยอดขายเดือนกุมภาพันธ์[ราคาขาย]-(ยอดขายเดือนกุมภาพันธ์[ราคา ซื้อ]+ยอดขายเดือนกุมภาพันธ์[ค่าธรรมเนียมออนไลน์]+ยอดขายเดือนกุมภาพันธ์[ค่าธรรมเนียม PayPal]+ยอดขายเดือนกุมภาพันธ์[ค่าธรรมเนียม บัตรเครดิต]),"") -> ฿ 61.80 | M4: =ยอดขายเดือนกุมภาพันธ์[ค่า จัดส่ง]-ยอดขายเดือนกุมภาพันธ์[ค่าธรรมเนียม การจัดส่ง] -> ฿ 7.00 | N4: =ยอดขายเดือนกุมภาพันธ์[กำไร/ขาดทุน ยอดขาย]+ยอดขายเดือนกุมภาพันธ์[กำไร/ขาดทุน การจัดส่ง] -> ฿ 68.80
C5: TS022 | D5: รายการ 3 | E5: ฿ 3.00 | F5: ฿ 7.00 | G5: ฿ 2.00 | I5: ฿ 2.00 | J5: ฿ 0.50 | K5: ฿ 1.20 | L5: =IFERROR(ยอดขายเดือนกุมภาพันธ์[ราคาขาย]-(ยอดขายเดือนกุมภาพันธ์[ราคา ซื้อ]+ยอดขายเดือนกุมภาพันธ์[ค่าธรรมเนียมออนไลน์]+ยอดขายเดือนกุมภาพันธ์[ค่าธรรมเนียม PayPal]+ยอดขายเดือนกุมภาพันธ์[ค่าธรรมเนียม บัตรเครดิต]),"") -> ฿ 0.00 | M5: =ยอดขายเดือนกุมภาพันธ์[ค่า จัดส่ง]-ยอดขายเดือนกุมภาพันธ์[ค่าธรรมเนียม การจัดส่ง] -> (฿ 0.70) | N5: =ยอดขายเดือนกุมภาพันธ์[กำไร/ขาดทุน ยอดขาย]+ยอดขายเดือนกุมภาพันธ์[กำไร/ขาดทุน การจัดส่ง] -> (฿ 0.70)
A6: กำไร/ขาดทุน ผลรวม | C6: TS023 | D6: รายการ 4 | E6: ฿ 22.00 | F6: ฿ 18.00 | G6: ฿ 3.00 | H6: ฿ 1.50 | J6: ฿ 7.00 | K6: ฿ 10.00 | L6: =IFERROR(ยอดขายเดือนกุมภาพันธ์[ราคาขาย]-(ยอดขายเดือนกุมภาพันธ์[ราคา ซื้อ]+ยอดขายเดือนกุมภาพันธ์[ค่าธรรมเนียมออนไลน์]+ยอดขายเดือนกุมภาพันธ์[ค่าธรรมเนียม PayPal]+ยอดขายเดือนกุมภาพันธ์[ค่าธรรมเนียม บัตรเครดิต]),"") -> (฿ 8.50) | M6: =ยอดขายเดือนกุมภาพันธ์[ค่า จัดส่ง]-ยอดขายเดือนกุมภาพันธ์[ค่าธรรมเนียม การจัดส่ง] -> (฿ 3.00) | N6: =ยอดขายเดือนกุมภาพันธ์[กำไร/ขาดทุน ยอดขาย]+ยอดขายเดือนกุมภาพันธ์[กำไร/ขาดทุน การจัดส่ง] -> (฿ 11.50)
A7: =ยอดขายเดือนกุมภาพันธ์[[#Totals],[กำไร/ขาดทุน ผลรวม]] -> ฿224.60 | C7: TS024 | D7: รายการ 5 | E7: ฿ 10.00 | F7: ฿ 12.00 | G7: ฿ 2.00 | H7: ฿ 1.50 | J7: ฿ 14.00 | K7: ฿ 7.00 | L7: =IFERROR(ยอดขายเดือนกุมภาพันธ์[ราคาขาย]-(ยอดขายเดือนกุมภาพันธ์[ราคา ซื้อ]+ยอดขายเดือนกุมภาพันธ์[ค่าธรรมเนียมออนไลน์]+ยอดขายเดือนกุมภาพันธ์[ค่าธรรมเนียม PayPal]+ยอดขายเดือนกุมภาพันธ์[ค่าธรรมเนียม บัตรเครดิต]),"") -> (฿ 1.50) | M7: =ยอดขายเดือนกุมภาพันธ์[ค่า จัดส่ง]-ยอดขายเดือนกุมภาพันธ์[ค่าธรรมเนียม การจัดส่ง] -> ฿ 7.00 | N7: =ยอดขายเดือนกุมภาพันธ์[กำไร/ขาดทุน ยอดขาย]+ยอดขายเดือนกุมภาพันธ์[กำไร/ขาดทุน การจัดส่ง] -> ฿ 5.50
C8: ผลรวม | D8: ="รายการที่ขายได้: "&SUBTOTAL(103,ยอดขายเดือนกุมภาพันธ์[คำอธิบาย รายการ]) -> รายการที่ขายได้: 5 | E8: =SUBTOTAL(109,ยอดขายเดือนกุมภาพันธ์[ราคา ซื้อ]) -> ฿ 77.00 | F8: =SUBTOTAL(109,ยอดขายเดือนกุมภาพันธ์[ราคาขาย]) -> ฿ 312.00 | G8: =SUBTOTAL(109,ยอดขายเดือนกุมภาพันธ์[ค่าธรรมเนียมออนไลน์]) -> ฿ 13.00 | H8: =SUBTOTAL(109,ยอดขายเดือนกุมภาพันธ์[ค่าธรรมเนียม PayPal]) -> ฿ 4.50 | I8: =SUBTOTAL(109,ยอดขายเดือนกุมภาพันธ์[ค่าธรรมเนียม บัตรเครดิต]) -> ฿ 5.20 | J8: =SUBTOTAL(109,ยอดขายเดือนกุมภาพันธ์[ค่า จัดส่ง]) -> ฿ 48.50 | K8: =SUBTOTAL(109,ยอดขายเดือนกุมภาพันธ์[ค่าธรรมเนียม การจัดส่ง]) -> ฿ 36.20 | L8: =SUBTOTAL(109,ยอดขายเดือนกุมภาพันธ์[กำไร/ขาดทุน ยอดขาย]) -> ฿ 212.30 | M8: =SUBTOTAL(109,ยอดขายเดือนกุมภาพันธ์[กำไร/ขาดทุน การจัดส่ง]) -> ฿ 12.30 | N8: =SUBTOTAL(109,ยอดขายเดือนกุมภาพันธ์[กำไร/ขาดทุน ผลรวม]) -> ฿ 224.60
A9: กำไร/ขาดทุน แนวโน้ม

Sheet มีนาคม
A1: มีนาคม
A2: การขายแบบออนไลน์ | C2: รหัส การประมูล | D2: คำอธิบาย รายการ | E2: ราคา ซื้อ | F2: ราคาขาย | G2: ค่าธรรมเนียมออนไลน์ | H2: ค่าธรรมเนียม PayPal | I2: ค่าธรรมเนียม บัตรเครดิต | J2: ค่า จัดส่ง | K2: ค่าธรรมเนียม การจัดส่ง | L2: กำไร/ขาดทุน ยอดขาย | M2: กำไร/ขาดทุน การจัดส่ง | N2: กำไร/ขาดทุน ผลรวม
A3: ปี | L3: =IFERROR(ยอดขายเดือนมีนาคม[ราคาขาย]-(ยอดขายเดือนมีนาคม[ราคา ซื้อ]+ยอดขายเดือนมีนาคม[ค่าธรรมเนียมออนไลน์]+ยอดขายเดือนมีนาคม[ค่าธรรมเนียม PayPal]+ยอดขายเดือนมีนาคม[ค่าธรรมเนียม บัตรเครดิต]),"") -> ฿ 0.00 | M3: =ยอดขายเดือนมีนาคม[ค่า จัดส่ง]-ยอดขายเดือนมีนาคม[ค่าธรรมเนียม การจัดส่ง] -> ฿ 0.00 | N3: =ยอดขายเดือนมีนาคม[กำไร/ขาดทุน ยอดขาย]+ยอดขายเดือนมีนาคม[กำไร/ขาดทุน การจัดส่ง] -> ฿ 0.00
A4: =SalesYear -> 2555 | L4: =IFERROR(ยอดขายเดือนมีนาคม[ราคาขาย]-(ยอดขายเดือนมีนาคม[ราคา ซื้อ]+ยอดขายเดือนมีนาคม[ค่าธรรมเนียมออนไลน์]+ยอดขายเดือนมีนาคม[ค่าธรรมเนียม PayPal]+ยอดขายเดือนมีนาคม[ค่าธรรมเนียม บัตรเครดิต]),"") -> ฿ 0.00 | M4: =ยอดขายเดือนมีนาคม[ค่า จัดส่ง]-ยอดขายเดือนมีนาคม[ค่าธรรมเนียม การจัดส่ง] -> ฿ 0.00 | N4: =ยอดขายเดือนมีนาคม[กำไร/ขาดทุน ยอดขาย]+ยอดขายเดือนมีนาคม[กำไร/ขาดทุน การจัดส่ง] -> ฿ 0.00
L5: =IFERROR(ยอดขายเดือนมีนาคม[ราคาขาย]-(ยอดขายเดือนมีนาคม[ราคา ซื้อ]+ยอดขายเดือนมีนาคม[ค่าธรรมเนียมออนไลน์]+ยอดขายเดือนมีนาคม[ค่าธรรมเนียม PayPal]+ยอดขายเดือนมีนาคม[ค่าธรรมเนียม บัตรเครดิต]),"") -> ฿ 0.00 | M5: =ยอดขายเดือนมีนาคม[ค่า จัดส่ง]-ยอดขายเดือนมีนาคม[ค่าธรรมเนียม การจัดส่ง] -> ฿ 0.00 | N5: =ยอดขายเดือนมีนาคม[กำไร/ขาดทุน ยอดขาย]+ยอดขายเดือนมีนาคม[กำไร/ขาดทุน การจัดส่ง] -> ฿ 0.00
A6: กำไร/ขาดทุน ผลรวม | L6: =IFERROR(ยอดขายเดือนมีนาคม[ราคาขาย]-(ยอดขายเดือนมีนาคม[ราคา ซื้อ]+ยอดขายเดือนมีนาคม[ค่าธรรมเนียมออนไลน์]+ยอดขายเดือนมีนาคม[ค่าธรรมเนียม PayPal]+ยอดขายเดือนมีนาคม[ค่าธรรมเนียม บัตรเครดิต]),"") -> ฿ 0.00 | M6: =ยอดขายเดือนมีนาคม[ค่า จัดส่ง]-ยอดขายเดือนมีนาคม[ค่าธรรมเนียม การจัดส่ง] -> ฿ 0.00 | N6: =ยอดขายเดือนมีนาคม[กำไร/ขาดทุน ยอดขาย]+ยอดขายเดือนมีนาคม[กำไร/ขาดทุน การจัดส่ง] -> ฿ 0.00
A7: =ยอดขายเดือนมีนาคม[[#Totals],[กำไร/ขาดทุน ผลรวม]] -> ฿0.00 | L7: =IFERROR(ยอดขายเดือนมีนาคม[ราคาขาย]-(ยอดขายเดือนมีนาคม[ราคา ซื้อ]+ยอดขายเดือนมีนาคม[ค่าธรรมเนียมออนไลน์]+ยอดขายเดือนมีนาคม[ค่าธรรมเนียม PayPal]+ยอดขายเดือนมีนาคม[ค่าธรรมเนียม บัตรเครดิต]),"") -> ฿ 0.00 | M7: =ยอดขายเดือนมีนาคม[ค่า จัดส่ง]-ยอดขายเดือนมีนาคม[ค่าธรรมเนียม การจัดส่ง] -> ฿ 0.00 | N7: =ยอดขายเดือนมีนาคม[กำไร/ขาดทุน ยอดขาย]+ยอดขายเดือนมีนาคม[กำไร/ขาดทุน การจัดส่ง] -> ฿ 0.00
C8: ผลรวม | D8: ="รายการที่ขายได้: "&SUBTOTAL(103,ยอดขายเดือนมีนาคม[คำอธิบาย รายการ]) -> รายการที่ขายได้: 0 | E8: =SUBTOTAL(109,ยอดขายเดือนมีนาคม[ราคา ซื้อ]) -> ฿ 0.00 | F8: =SUBTOTAL(109,ยอดขายเดือนมีนาคม[ราคาขาย]) -> ฿ 0.00 | G8: =SUBTOTAL(109,ยอดขายเดือนมีนาคม[ค่าธรรมเนียมออนไลน์]) -> ฿ 0.00 | H8: =SUBTOTAL(109,ยอดขายเดือนมีนาคม[ค่าธรรมเนียม PayPal]) -> ฿ 0.00 | I8: =SUBTOTAL(109,ยอดขายเดือนมีนาคม[ค่าธรรมเนียม บัตรเครดิต]) -> ฿ 0.00 | J8: =SUBTOTAL(109,ยอดขายเดือนมีนาคม[ค่า จัดส่ง]) -> ฿ 0.00 | K8: =SUBTOTAL(109,ยอดขายเดือนมีนาคม[ค่าธรรมเนียม การจัดส่ง]) -> ฿ 0.00 | L8: =SUBTOTAL(109,ยอดขายเดือนมีนาคม[กำไร/ขาดทุน ยอดขาย]) -> ฿ 0.00 | M8: =SUBTOTAL(109,ยอดขายเดือนมีนาคม[กำไร/ขาดทุน การจัดส่ง]) -> ฿ 0.00 | N8: =SUBTOTAL(109,ยอดขายเดือนมีนาคม[กำไร/ขาดทุน ผลรวม]) -> ฿ 0.00
A9: กำไร/ขาดทุน แนวโน้ม

Sheet เมษายน
A1: เมษายน
A2: การขายแบบออนไลน์ | C2: รหัส การประมูล | D2: คำอธิบาย รายการ | E2: ราคา ซื้อ | F2: ราคาขาย | G2: ค่าธรรมเนียมออนไลน์ | H2: ค่าธรรมเนียม PayPal | I2: ค่าธรรมเนียม บัตรเครดิต | J2: ค่า จัดส่ง | K2: ค่าธรรมเนียม การจัดส่ง | L2: กำไร/ขาดทุน ยอดขาย | M2: กำไร/ขาดทุน การจัดส่ง | N2: กำไร/ขาดทุน ผลรวม
A3: ปี | M3: =ยอดขายเดือนเมษายน[ค่า จัดส่ง]-ยอดขายเดือนเมษายน[ค่าธรรมเนียม การจัดส่ง] -> ฿ 0.00 | N3: =ยอดขายเดือนเมษายน[กำไร/ขาดทุน ยอดขาย]+ยอดขายเดือนเมษายน[กำไร/ขาดทุน การจัดส่ง] -> ฿ 0.00
A4: =SalesYear -> 2555 | M4: =ยอดขายเดือนเมษายน[ค่า จัดส่ง]-ยอดขายเดือนเมษายน[ค่าธรรมเนียม การจัดส่ง] -> ฿ 0.00 | N4: =ยอดขายเดือนเมษายน[กำไร/ขาดทุน ยอดขาย]+ยอดขายเดือนเมษายน[กำไร/ขาดทุน การจัดส่ง] -> ฿ 0.00
M5: =ยอดขายเดือนเมษายน[ค่า จัดส่ง]-ยอดขายเดือนเมษายน[ค่าธรรมเนียม การจัดส่ง] -> ฿ 0.00 | N5: =ยอดขายเดือนเมษายน[กำไร/ขาดทุน ยอดขาย]+ยอดขายเดือนเมษายน[กำไร/ขาดทุน การจัดส่ง] -> ฿ 0.00
A6: กำไร/ขาดทุน ผลรวม | M6: =ยอดขายเดือนเมษายน[ค่า จัดส่ง]-ยอดขายเดือนเมษายน[ค่าธรรมเนียม การจัดส่ง] -> ฿ 0.00 | N6: =ยอดขายเดือนเมษายน[กำไร/ขาดทุน ยอดขาย]+ยอดขายเดือนเมษายน[กำไร/ขาดทุน การจัดส่ง] -> ฿ 0.00
A7: =ยอดขายเดือนเมษายน[[#Totals],[กำไร/ขาดทุน ผลรวม]] -> ฿0.00 | M7: =ยอดขายเดือนเมษายน[ค่า จัดส่ง]-ยอดขายเดือนเมษายน[ค่าธรรมเนียม การจัดส่ง] -> ฿ 0.00 | N7: =ยอดขายเดือนเมษายน[กำไร/ขาดทุน ยอดขาย]+ยอดขายเดือนเมษายน[กำไร/ขาดทุน การจัดส่ง] -> ฿ 0.00
C8: ผลรวม | D8: ="รายการที่ขายได้: "&SUBTOTAL(103,ยอดขายเดือนเมษายน[คำอธิบาย รายการ]) -> รายการที่ขายได้: 0 | E8: =SUBTOTAL(109,ยอดขายเดือนเมษายน[ราคา ซื้อ]) -> ฿ 0.00 | F8: =SUBTOTAL(109,ยอดขายเดือนเมษายน[ราคาขาย]) -> ฿ 0.00 | G8: =SUBTOTAL(109,ยอดขายเดือนเมษายน[ค่าธรรมเนียมออนไลน์]) -> ฿ 0.00 | H8: =SUBTOTAL(109,ยอดขายเดือนเมษายน[ค่าธรรมเนียม PayPal]) -> ฿ 0.00 | I8: =SUBTOTAL(109,ยอดขายเดือนเมษายน[ค่าธรรมเนียม บัตรเครดิต]) -> ฿ 0.00 | J8: =SUBTOTAL(109,ยอดขายเดือนเมษายน[ค่า จัดส่ง]) -> ฿ 0.00 | K8: =SUBTOTAL(109,ยอดขายเดือนเมษายน[ค่าธรรมเนียม การจัดส่ง]) -> ฿ 0.00 | L8: =SUBTOTAL(109,ยอดขายเดือนเมษายน[กำไร/ขาดทุน ยอดขาย]) -> ฿ 0.00 | M8: =SUBTOTAL(109,ยอดขายเดือนเมษายน[กำไร/ขาดทุน การจัดส่ง]) -> ฿ 0.00 | N8: =SUBTOTAL(109,ยอดขายเดือนเมษายน[กำไร/ขาดทุน ผลรวม]) -> ฿ 0.00
A9: กำไร/ขาดทุน แนวโน้ม

Sheet พฤษภาคม
A1: พฤษภาคม
A2: การขายแบบออนไลน์ | C2: รหัส การประมูล | D2: คำอธิบาย รายการ | E2: ราคา ซื้อ | F2: ราคาขาย | G2: ค่าธรรมเนียมออนไลน์ | H2: ค่าธรรมเนียม PayPal | I2: ค่าธรรมเนียม บัตรเครดิต | J2: ค่า จัดส่ง | K2: ค่าธรรมเนียม การจัดส่ง | L2: กำไร/ขาดทุน ยอดขาย | M2: กำไร/ขาดทุน การจัดส่ง | N2: กำไร/ขาดทุน ผลรวม
A3: ปี | M3: =ยอดขายเดือนพฤษภาคม[ค่า จัดส่ง]-ยอดขายเดือนพฤษภาคม[ค่าธรรมเนียม การจัดส่ง] -> ฿ 0.00 | N3: =ยอดขายเดือนพฤษภาคม[กำไร/ขาดทุน ยอดขาย]+ยอดขายเดือนพฤษภาคม[กำไร/ขาดทุน การจัดส่ง] -> ฿ 0.00
A4: =SalesYear -> 2555 | M4: =ยอดขายเดือนพฤษภาคม[ค่า จัดส่ง]-ยอดขายเดือนพฤษภาคม[ค่าธรรมเนียม การจัดส่ง] -> ฿ 0.00 | N4: =ยอดขายเดือนพฤษภาคม[กำไร/ขาดทุน ยอดขาย]+ยอดขายเดือนพฤษภาคม[กำไร/ขาดทุน การจัดส่ง] -> ฿ 0.00
M5: =ยอดขายเดือนพฤษภาคม[ค่า จัดส่ง]-ยอดขายเดือนพฤษภาคม[ค่าธรรมเนียม การจัดส่ง] -> ฿ 0.00 | N5: =ยอดขายเดือนพฤษภาคม[กำไร/ขาดทุน ยอดขาย]+ยอดขายเดือนพฤษภาคม[กำไร/ขาดทุน การจัดส่ง] -> ฿ 0.00
A6: กำไร/ขาดทุน ผลรวม | M6: =ยอดขายเดือนพฤษภาคม[ค่า จัดส่ง]-ยอดขายเดือนพฤษภาคม[ค่าธรรมเนียม การจัดส่ง] -> ฿ 0.00 | N6: =ยอดขายเดือนพฤษภาคม[กำไร/ขาดทุน ยอดขาย]+ยอดขายเดือนพฤษภาคม[กำไร/ขาดทุน การจัดส่ง] -> ฿ 0.00
A7: =ยอดขายเดือนพฤษภาคม[[#Totals],[กำไร/ขาดทุน ผลรวม]] -> $0.00 | M7: =ยอดขายเดือนพฤษภาคม[ค่า จัดส่ง]-ยอดขายเดือนพฤษภาคม[ค่าธรรมเนียม การจัดส่ง] -> ฿ 0.00 | N7: =ยอดขายเดือนพฤษภาคม[กำไร/ขาดทุน ยอดขาย]+ยอดขายเดือนพฤษภาคม[กำไร/ขาดทุน การจัดส่ง] -> ฿ 0.00
C8: ผลรวม | D8: ="รายการที่ขายได้: "&SUBTOTAL(103,ยอดขายเดือนพฤษภาคม[คำอธิบาย รายการ]) -> รายการที่ขายได้: 0 | E8: =SUBTOTAL(109,ยอดขายเดือนพฤษภาคม[ราคา ซื้อ]) -> ฿ 0.00 | F8: =SUBTOTAL(109,ยอดขายเดือนพฤษภาคม[ราคาขาย]) -> ฿ 0.00 | G8: =SUBTOTAL(109,ยอดขายเดือนพฤษภาคม[ค่าธรรมเนียมออนไลน์]) -> ฿ 0.00 | H8: =SUBTOTAL(109,ยอดขายเดือนพฤษภาคม[ค่าธรรมเนียม PayPal]) -> ฿ 0.00 | I8: =SUBTOTAL(109,ยอดขายเดือนพฤษภาคม[ค่าธรรมเนียม บัตรเครดิต]) -> ฿ 0.00 | J8: =SUBTOTAL(109,ยอดขายเดือนพฤษภาคม[ค่า จัดส่ง]) -> ฿ 0.00 | K8: =SUBTOTAL(109,ยอดขายเดือนพฤษภาคม[ค่าธรรมเนียม การจัดส่ง]) -> ฿ 0.00 | L8: =SUBTOTAL(109,ยอดขายเดือนพฤษภาคม[กำไร/ขาดทุน ยอดขาย]) -> ฿ 0.00 | M8: =SUBTOTAL(109,ยอดขายเดือนพฤษภาคม[กำไร/ขาดทุน การจัดส่ง]) -> ฿ 0.00 | N8: =SUBTOTAL(109,ยอดขายเดือนพฤษภาคม[กำไร/ขาดทุน ผลรวม]) -> ฿ 0.00
A9: กำไร/ขาดทุน แนวโน้ม

Sheet มิถุนายน
A1: มิถุนายน
A2: การขายแบบออนไลน์ | C2: รหัส การประมูล | D2: คำอธิบาย รายการ | E2: ราคา ซื้อ | F2: ราคาขาย | G2: ค่าธรรมเนียมออนไลน์ | H2: ค่าธรรมเนียม PayPal | I2: ค่าธรรมเนียม บัตรเครดิต | J2: ค่า จัดส่ง | K2: ค่าธรรมเนียม การจัดส่ง | L2: กำไร/ขาดทุน ยอดขาย | M2: กำไร/ขาดทุน การจัดส่ง | N2: กำไร/ขาดทุน ผลรวม
A3: ปี | M3: =ยอดขายเดือนมิถุนายน[ค่า จัดส่ง]-ยอดขายเดือนมิถุนายน[ค่าธรรมเนียม การจัดส่ง] -> ฿ 0.00 | N3: =ยอดขายเดือนมิถุนายน[กำไร/ขาดทุน ยอดขาย]+ยอดขายเดือนมิถุนายน[กำไร/ขาดทุน การจัดส่ง] -> ฿ 0.00
A4: =SalesYear -> 2555 | M4: =ยอดขายเดือนมิถุนายน[ค่า จัดส่ง]-ยอดขายเดือนมิถุนายน[ค่าธรรมเนียม การจัดส่ง] -> ฿ 0.00 | N4: =ยอดขายเดือนมิถุนายน[กำไร/ขาดทุน ยอดขาย]+ยอดขายเดือนมิถุนายน[กำไร/ขาดทุน การจัดส่ง] -> ฿ 0.00
M5: =ยอดขายเดือนมิถุนายน[ค่า จัดส่ง]-ยอดขายเดือนมิถุนายน[ค่าธรรมเนียม การจัดส่ง] -> ฿ 0.00 | N5: =ยอดขายเดือนมิถุนายน[กำไร/ขาดทุน ยอดขาย]+ยอดขายเดือนมิถุนายน[กำไร/ขาดทุน การจัดส่ง] -> ฿ 0.00
A6: กำไร/ขาดทุน ผลรวม | M6: =ยอดขายเดือนมิถุนายน[ค่า จัดส่ง]-ยอดขายเดือนมิถุนายน[ค่าธรรมเนียม การจัดส่ง] -> ฿ 0.00 | N6: =ยอดขายเดือนมิถุนายน[กำไร/ขาดทุน ยอดขาย]+ยอดขายเดือนมิถุนายน[กำไร/ขาดทุน การจัดส่ง] -> ฿ 0.00
A7: =ยอดขายเดือนมิถุนายน[[#Totals],[กำไร/ขาดทุน ผลรวม]] -> ฿0.00 | M7: =ยอดขายเดือนมิถุนายน[ค่า จัดส่ง]-ยอดขายเดือนมิถุนายน[ค่าธรรมเนียม การจัดส่ง] -> ฿ 0.00 | N7: =ยอดขายเดือนมิถุนายน[กำไร/ขาดทุน ยอดขาย]+ยอดขายเดือนมิถุนายน[กำไร/ขาดทุน การจัดส่ง] -> ฿ 0.00
C8: ผลรวม | D8: ="รายการที่ขายได้: "&SUBTOTAL(103,ยอดขายเดือนมิถุนายน[คำอธิบาย รายการ]) -> รายการที่ขายได้: 0 | E8: =SUBTOTAL(109,ยอดขายเดือนมิถุนายน[ราคา ซื้อ]) -> ฿ 0.00 | F8: =SUBTOTAL(109,ยอดขายเดือนมิถุนายน[ราคาขาย]) -> ฿ 0.00 | G8: =SUBTOTAL(109,ยอดขายเดือนมิถุนายน[ค่าธรรมเนียมออนไลน์]) -> ฿ 0.00 | H8: =SUBTOTAL(109,ยอดขายเดือนมิถุนายน[ค่าธรรมเนียม PayPal]) -> ฿ 0.00 | I8: =SUBTOTAL(109,ยอดขายเดือนมิถุนายน[ค่าธรรมเนียม บัตรเครดิต]) -> ฿ 0.00 | J8: =SUBTOTAL(109,ยอดขายเดือนมิถุนายน[ค่า จัดส่ง]) -> ฿ 0.00 | K8: =SUBTOTAL(109,ยอดขายเดือนมิถุนายน[ค่าธรรมเนียม การจัดส่ง]) -> ฿ 0.00 | L8: =SUBTOTAL(109,ยอดขายเดือนมิถุนายน[กำไร/ขาดทุน ยอดขาย]) -> ฿ 0.00 | M8: =SUBTOTAL(109,ยอดขายเดือนมิถุนายน[กำไร/ขาดทุน การจัดส่ง]) -> ฿ 0.00 | N8: =SUBTOTAL(109,ยอดขายเดือนมิถุนายน[กำไร/ขาดทุน ผลรวม]) -> ฿ 0.00
A9: กำไร/ขาดทุน แนวโน้ม

Sheet กรกฎาคม
A1: กรกฎาคม
A2: การขายแบบออนไลน์ | C2: รหัส การประมูล | D2: คำอธิบาย รายการ | E2: ราคา ซื้อ | F2: ราคาขาย | G2: ค่าธรรมเนียมออนไลน์ | H2: ค่าธรรมเนียม PayPal | I2: ค่าธรรมเนียม บัตรเครดิต | J2: ค่า จัดส่ง | K2: ค่าธรรมเนียม การจัดส่ง | L2: กำไร/ขาดทุน ยอดขาย | M2: กำไร/ขาดทุน การจัดส่ง | N2: กำไร/ขาดทุน ผลรวม
A3: ปี | M3: =ยอดขายเดือนกรกฎาคม[ค่า จัดส่ง]-ยอดขายเดือนกรกฎาคม[ค่าธรรมเนียม การจัดส่ง] -> ฿ 0.00 | N3: =ยอดขายเดือนกรกฎาคม[กำไร/ขาดทุน ยอดขาย]+ยอดขายเดือนกรกฎาคม[กำไร/ขาดทุน การจัดส่ง] -> ฿ 0.00
A4: =SalesYear -> 2555 | M4: =ยอดขายเดือนกรกฎาคม[ค่า จัดส่ง]-ยอดขายเดือนกรกฎาคม[ค่าธรรมเนียม การจัดส่ง] -> ฿ 0.00 | N4: =ยอดขายเดือนกรกฎาคม[กำไร/ขาดทุน ยอดขาย]+ยอดขายเดือนกรกฎาคม[กำไร/ขาดทุน การจัดส่ง] -> ฿ 0.00
M5: =ยอดขายเดือนกรกฎาคม[ค่า จัดส่ง]-ยอดขายเดือนกรกฎาคม[ค่าธรรมเนียม การจัดส่ง] -> ฿ 0.00 | N5: =ยอดขายเดือนกรกฎาคม[กำไร/ขาดทุน ยอดขาย]+ยอดขายเดือนกรกฎาคม[กำไร/ขาดทุน การจัดส่ง] -> ฿ 0.00
A6: กำไร/ขาดทุน ผลรวม | M6: =ยอดขายเดือนกรกฎาคม[ค่า จัดส่ง]-ยอดขายเดือนกรกฎาคม[ค่าธรรมเนียม การจัดส่ง] -> ฿ 0.00 | N6: =ยอดขายเดือนกรกฎาคม[กำไร/ขาดทุน ยอดขาย]+ยอดขายเดือนกรกฎาคม[กำไร/ขาดทุน การจัดส่ง] -> ฿ 0.00
A7: =ยอดขายเดือนกรกฎาคม[[#Totals],[กำไร/ขาดทุน ผลรวม]] -> ฿0.00 | M7: =ยอดขายเดือนกรกฎาคม[ค่า จัดส่ง]-ยอดขายเดือนกรกฎาคม[ค่าธรรมเนียม การจัดส่ง] -> ฿ 0.00 | N7: =ยอดขายเดือนกรกฎาคม[กำไร/ขาดทุน ยอดขาย]+ยอดขายเดือนกรกฎาคม[กำไร/ขาดทุน การจัดส่ง] -> ฿ 0.00
C8: ผลรวม | D8: ="รายการที่ขายได้: "&SUBTOTAL(103,ยอดขายเดือนกรกฎาคม[คำอธิบาย รายการ]) -> รายการที่ขายได้: 0 | E8: =SUBTOTAL(109,ยอดขายเดือนกรกฎาคม[ราคา ซื้อ]) -> ฿ 0.00 | F8: =SUBTOTAL(109,ยอดขายเดือนกรกฎาคม[ราคาขาย]) -> ฿ 0.00 | G8: =SUBTOTAL(109,ยอดขายเดือนกรกฎาคม[ค่าธรรมเนียมออนไลน์]) -> ฿ 0.00 | H8: =SUBTOTAL(109,ยอดขายเดือนกรกฎาคม[ค่าธรรมเนียม PayPal]) -> ฿ 0.00 | I8: =SUBTOTAL(109,ยอดขายเดือนกรกฎาคม[ค่าธรรมเนียม บัตรเครดิต]) -> ฿ 0.00 | J8: =SUBTOTAL(109,ยอดขายเดือนกรกฎาคม[ค่า จัดส่ง]) -> ฿ 0.00 | K8: =SUBTOTAL(109,ยอดขายเดือนกรกฎาคม[ค่าธรรมเนียม การจัดส่ง]) -> ฿ 0.00 | L8: =SUBTOTAL(109,ยอดขายเดือนกรกฎาคม[กำไร/ขาดทุน ยอดขาย]) -> ฿ 0.00 | M8: =SUBTOTAL(109,ยอดขายเดือนกรกฎาคม[กำไร/ขาดทุน การจัดส่ง]) -> ฿ 0.00 | N8: =SUBTOTAL(109,ยอดขายเดือนกรกฎาคม[กำไร/ขาดทุน ผลรวม]) -> ฿ 0.00
A9: กำไร/ขาดทุน แนวโน้ม

Sheet สิงหาคม
A1: สิงหาคม
A2: การขายแบบออนไลน์ | C2: รหัส การประมูล | D2: คำอธิบาย รายการ | E2: ราคา ซื้อ | F2: ราคาขาย | G2: ค่าธรรมเนียมออนไลน์ | H2: ค่าธรรมเนียม PayPal | I2: ค่าธรรมเนียม บัตรเครดิต | J2: ค่า จัดส่ง | K2: ค่าธรรมเนียม การจัดส่ง | L2: กำไร/ขาดทุน ยอดขาย | M2: กำไร/ขาดทุน การจัดส่ง | N2: กำไร/ขาดทุน ผลรวม
A3: ปี | M3: =ยอดขายเดือนสิงหาคม[ค่า จัดส่ง]-ยอดขายเดือนสิงหาคม[ค่าธรรมเนียม การจัดส่ง] -> ฿ 0.00 | N3: =ยอดขายเดือนสิงหาคม[กำไร/ขาดทุน ยอดขาย]+ยอดขายเดือนสิงหาคม[กำไร/ขาดทุน การจัดส่ง] -> ฿ 0.00
A4: =SalesYear -> 2555 | M4: =ยอดขายเดือนสิงหาคม[ค่า จัดส่ง]-ยอดขายเดือนสิงหาคม[ค่าธรรมเนียม การจัดส่ง] -> ฿ 0.00 | N4: =ยอดขายเดือนสิงหาคม[กำไร/ขาดทุน ยอดขาย]+ยอดขายเดือนสิงหาคม[กำไร/ขาดทุน การจัดส่ง] -> ฿ 0.00
M5: =ยอดขายเดือนสิงหาคม[ค่า จัดส่ง]-ยอดขายเดือนสิงหาคม[ค่าธรรมเนียม การจัดส่ง] -> ฿ 0.00 | N5: =ยอดขายเดือนสิงหาคม[กำไร/ขาดทุน ยอดขาย]+ยอดขายเดือนสิงหาคม[กำไร/ขาดทุน การจัดส่ง] -> ฿ 0.00
A6: กำไร/ขาดทุน ผลรวม | M6: =ยอดขายเดือนสิงหาคม[ค่า จัดส่ง]-ยอดขายเดือนสิงหาคม[ค่าธรรมเนียม การจัดส่ง] -> ฿ 0.00 | N6: =ยอดขายเดือนสิงหาคม[กำไร/ขาดทุน ยอดขาย]+ยอดขายเดือนสิงหาคม[กำไร/ขาดทุน การจัดส่ง] -> ฿ 0.00
A7: =ยอดขายเดือนสิงหาคม[[#Totals],[กำไร/ขาดทุน ผลรวม]] -> ฿0.00 | M7: =ยอดขายเดือนสิงหาคม[ค่า จัดส่ง]-ยอดขายเดือนสิงหาคม[ค่าธรรมเนียม การจัดส่ง] -> ฿ 0.00 | N7: =ยอดขายเดือนสิงหาคม[กำไร/ขาดทุน ยอดขาย]+ยอดขายเดือนสิงหาคม[กำไร/ขาดทุน การจัดส่ง] -> ฿ 0.00
C8: ผลรวม | D8: ="รายการที่ขายได้: "&SUBTOTAL(103,ยอดขายเดือนสิงหาคม[คำอธิบาย รายการ]) -> รายการที่ขายได้: 0 | E8: =SUBTOTAL(109,ยอดขายเดือนสิงหาคม[ราคา ซื้อ]) -> ฿ 0.00 | F8: =SUBTOTAL(109,ยอดขายเดือนสิงหาคม[ราคาขาย]) -> ฿ 0.00 | G8: =SUBTOTAL(109,ยอดขายเดือนสิงหาคม[ค่าธรรมเนียมออนไลน์]) -> ฿ 0.00 | H8: =SUBTOTAL(109,ยอดขายเดือนสิงหาคม[ค่าธรรมเนียม PayPal]) -> ฿ 0.00 | I8: =SUBTOTAL(109,ยอดขายเดือนสิงหาคม[ค่าธรรมเนียม บัตรเครดิต]) -> ฿ 0.00 | J8: =SUBTOTAL(109,ยอดขายเดือนสิงหาคม[ค่า จัดส่ง]) -> ฿ 0.00 | K8: =SUBTOTAL(109,ยอดขายเดือนสิงหาคม[ค่าธรรมเนียม การจัดส่ง]) -> ฿ 0.00 | L8: =SUBTOTAL(109,ยอดขายเดือนสิงหาคม[กำไร/ขาดทุน ยอดขาย]) -> ฿ 0.00 | M8: =SUBTOTAL(109,ยอดขายเดือนสิงหาคม[กำไร/ขาดทุน การจัดส่ง]) -> ฿ 0.00 | N8: =SUBTOTAL(109,ยอดขายเดือนสิงหาคม[กำไร/ขาดทุน ผลรวม]) -> ฿ 0.00
A9: กำไร/ขาดทุน แนวโน้ม

Sheet กันยายน
A1: กันยายน
A2: การขายแบบออนไลน์ | C2: รหัส การประมูล | D2: คำอธิบาย รายการ | E2: ราคา ซื้อ | F2: ราคาขาย | G2: ค่าธรรมเนียมออนไลน์ | H2: ค่าธรรมเนียม PayPal | I2: ค่าธรรมเนียม บัตรเครดิต | J2: ค่า จัดส่ง | K2: ค่าธรรมเนียม การจัดส่ง | L2: กำไร/ขาดทุน ยอดขาย | M2: กำไร/ขาดทุน การจัดส่ง | N2: กำไร/ขาดทุน ผลรวม
A3: ปี | M3: =ยอดขายเดือนกันยายน[ค่า จัดส่ง]-ยอดขายเดือนกันยายน[ค่าธรรมเนียม การจัดส่ง] -> ฿ 0.00 | N3: =ยอดขายเดือนกันยายน[กำไร/ขาดทุน ยอดขาย]+ยอดขายเดือนกันยายน[กำไร/ขาดทุน การจัดส่ง] -> ฿ 0.00
A4: =SalesYear -> 2555 | M4: =ยอดขายเดือนกันยายน[ค่า จัดส่ง]-ยอดขายเดือนกันยายน[ค่าธรรมเนียม การจัดส่ง] -> ฿ 0.00 | N4: =ยอดขายเดือนกันยายน[กำไร/ขาดทุน ยอดขาย]+ยอดขายเดือนกันยายน[กำไร/ขาดทุน การจัดส่ง] -> ฿ 0.00
M5: =ยอดขายเดือนกันยายน[ค่า จัดส่ง]-ยอดขายเดือนกันยายน[ค่าธรรมเนียม การจัดส่ง] -> ฿ 0.00 | N5: =ยอดขายเดือนกันยายน[กำไร/ขาดทุน ยอดขาย]+ยอดขายเดือนกันยายน[กำไร/ขาดทุน การจัดส่ง] -> ฿ 0.00
A6: กำไร/ขาดทุน ผลรวม | M6: =ยอดขายเดือนกันยายน[ค่า จัดส่ง]-ยอดขายเดือนกันยายน[ค่าธรรมเนียม การจัดส่ง] -> ฿ 0.00 | N6: =ยอดขายเดือนกันยายน[กำไร/ขาดทุน ยอดขาย]+ยอดขายเดือนกันยายน[กำไร/ขาดทุน การจัดส่ง] -> ฿ 0.00
A7: =ยอดขายเดือนกันยายน[[#Totals],[กำไร/ขาดทุน ผลรวม]] -> ฿0.00 | M7: =ยอดขายเดือนกันยายน[ค่า จัดส่ง]-ยอดขายเดือนกันยายน[ค่าธรรมเนียม การจัดส่ง] -> ฿ 0.00 | N7: =ยอดขายเดือนกันยายน[กำไร/ขาดทุน ยอดขาย]+ยอดขายเดือนกันยายน[กำไร/ขาดทุน การจัดส่ง] -> ฿ 0.00
C8: ผลรวม | D8: ="รายการที่ขายได้: "&SUBTOTAL(103,ยอดขายเดือนกันยายน[คำอธิบาย รายการ]) -> รายการที่ขายได้: 0 | E8: =SUBTOTAL(109,ยอดขายเดือนกันยายน[ราคา ซื้อ]) -> ฿ 0.00 | F8: =SUBTOTAL(109,ยอดขายเดือนกันยายน[ราคาขาย]) -> ฿ 0.00 | G8: =SUBTOTAL(109,ยอดขายเดือนกันยายน[ค่าธรรมเนียมออนไลน์]) -> ฿ 0.00 | H8: =SUBTOTAL(109,ยอดขายเดือนกันยายน[ค่าธรรมเนียม PayPal]) -> ฿ 0.00 | I8: =SUBTOTAL(109,ยอดขายเดือนกันยายน[ค่าธรรมเนียม บัตรเครดิต]) -> ฿ 0.00 | J8: =SUBTOTAL(109,ยอดขายเดือนกันยายน[ค่า จัดส่ง]) -> ฿ 0.00 | K8: =SUBTOTAL(109,ยอดขายเดือนกันยายน[ค่าธรรมเนียม การจัดส่ง]) -> ฿ 0.00 | L8: =SUBTOTAL(109,ยอดขายเดือนกันยายน[กำไร/ขาดทุน ยอดขาย]) -> ฿ 0.00 | M8: =SUBTOTAL(109,ยอดขายเดือนกันยายน[กำไร/ขาดทุน การจัดส่ง]) -> ฿ 0.00 | N8: =SUBTOTAL(109,ยอดขายเดือนกันยายน[กำไร/ขาดทุน ผลรวม]) -> ฿ 0.00
A9: กำไร/ขาดทุน แนวโน้ม

Sheet ตุลาคม
A1: ตุลาคม
A2: การขายแบบออนไลน์ | C2: รหัส การประมูล | D2: คำอธิบาย รายการ | E2: ราคา ซื้อ | F2: ราคาขาย | G2: ค่าธรรมเนียมออนไลน์ | H2: ค่าธรรมเนียม PayPal | I2: ค่าธรรมเนียม บัตรเครดิต | J2: ค่า จัดส่ง | K2: ค่าธรรมเนียม การจัดส่ง | L2: กำไร/ขาดทุน ยอดขาย | M2: กำไร/ขาดทุน การจัดส่ง | N2: กำไร/ขาดทุน ผลรวม
A3: ปี | M3: =ยอดขายเดือนตุลาคม[ค่า จัดส่ง]-ยอดขายเดือนตุลาคม[ค่าธรรมเนียม การจัดส่ง] -> ฿ 0.00 | N3: =ยอดขายเดือนตุลาคม[กำไร/ขาดทุน ยอดขาย]+ยอดขายเดือนตุลาคม[กำไร/ขาดทุน การจัดส่ง] -> ฿ 0.00
A4: =SalesYear -> 2555 | M4: =ยอดขายเดือนตุลาคม[ค่า จัดส่ง]-ยอดขายเดือนตุลาคม[ค่าธรรมเนียม การจัดส่ง] -> ฿ 0.00 | N4: =ยอดขายเดือนตุลาคม[กำไร/ขาดทุน ยอดขาย]+ยอดขายเดือนตุลาคม[กำไร/ขาดทุน การจัดส่ง] -> ฿ 0.00
M5: =ยอดขายเดือนตุลาคม[ค่า จัดส่ง]-ยอดขายเดือนตุลาคม[ค่าธรรมเนียม การจัดส่ง] -> ฿ 0.00 | N5: =ยอดขายเดือนตุลาคม[กำไร/ขาดทุน ยอดขาย]+ยอดขายเดือนตุลาคม[กำไร/ขาดทุน การจัดส่ง] -> ฿ 0.00
A6: กำไร/ขาดทุน ผลรวม | M6: =ยอดขายเดือนตุลาคม[ค่า จัดส่ง]-ยอดขายเดือนตุลาคม[ค่าธรรมเนียม การจัดส่ง] -> ฿ 0.00 | N6: =ยอดขายเดือนตุลาคม[กำไร/ขาดทุน ยอดขาย]+ยอดขายเดือนตุลาคม[กำไร/ขาดทุน การจัดส่ง] -> ฿ 0.00
A7: =ยอดขายเดือนตุลาคม[[#Totals],[กำไร/ขาดทุน ผลรวม]] -> ฿0.00 | M7: =ยอดขายเดือนตุลาคม[ค่า จัดส่ง]-ยอดขายเดือนตุลาคม[ค่าธรรมเนียม การจัดส่ง] -> ฿ 0.00 | N7: =ยอดขายเดือนตุลาคม[กำไร/ขาดทุน ยอดขาย]+ยอดขายเดือนตุลาคม[กำไร/ขาดทุน การจัดส่ง] -> ฿ 0.00
C8: ผลรวม | D8: ="รายการที่ขายได้: "&SUBTOTAL(103,ยอดขายเดือนตุลาคม[คำอธิบาย รายการ]) -> รายการที่ขายได้: 0 | E8: =SUBTOTAL(109,ยอดขายเดือนตุลาคม[ราคา ซื้อ]) -> ฿ 0.00 | F8: =SUBTOTAL(109,ยอดขายเดือนตุลาคม[ราคาขาย]) -> ฿ 0.00 | G8: =SUBTOTAL(109,ยอดขายเดือนตุลาคม[ค่าธรรมเนียมออนไลน์]) -> ฿ 0.00 | H8: =SUBTOTAL(109,ยอดขายเดือนตุลาคม[ค่าธรรมเนียม PayPal]) -> ฿ 0.00 | I8: =SUBTOTAL(109,ยอดขายเดือนตุลาคม[ค่าธรรมเนียม บัตรเครดิต]) -> ฿ 0.00 | J8: =SUBTOTAL(109,ยอดขายเดือนตุลาคม[ค่า จัดส่ง]) -> ฿ 0.00 | K8: =SUBTOTAL(109,ยอดขายเดือนตุลาคม[ค่าธรรมเนียม การจัดส่ง]) -> ฿ 0.00 | L8: =SUBTOTAL(109,ยอดขายเดือนตุลาคม[กำไร/ขาดทุน ยอดขาย]) -> ฿ 0.00 | M8: =SUBTOTAL(109,ยอดขายเดือนตุลาคม[กำไร/ขาดทุน การจัดส่ง]) -> ฿ 0.00 | N8: =SUBTOTAL(109,ยอดขายเดือนตุลาคม[กำไร/ขาดทุน ผลรวม]) -> ฿ 0.00
A9: กำไร/ขาดทุน แนวโน้ม

Sheet พฤศจิกายน
A1: พฤศจิกายน
A2: การขายแบบออนไลน์ | C2: รหัส การประมูล | D2: คำอธิบาย รายการ | E2: ราคา ซื้อ | F2: ราคาขาย | G2: ค่าธรรมเนียมออนไลน์ | H2: ค่าธรรมเนียม PayPal | I2: ค่าธรรมเนียม บัตรเครดิต | J2: ค่า จัดส่ง | K2: ค่าธรรมเนียม การจัดส่ง | L2: กำไร/ขาดทุน ยอดขาย | M2: กำไร/ขาดทุน การจัดส่ง | N2: กำไร/ขาดทุน ผลรวม
A3: ปี | M3: =ยอดขายเดือนพฤศจิกายน[ค่า จัดส่ง]-ยอดขายเดือนพฤศจิกายน[ค่าธรรมเนียม การจัดส่ง] -> ฿ 0.00 | N3: =ยอดขายเดือนพฤศจิกายน[กำไร/ขาดทุน ยอดขาย]+ยอดขายเดือนพฤศจิกายน[กำไร/ขาดทุน การจัดส่ง] -> ฿ 0.00
A4: =SalesYear -> 2555 | M4: =ยอดขายเดือนพฤศจิกายน[ค่า จัดส่ง]-ยอดขายเดือนพฤศจิกายน[ค่าธรรมเนียม การจัดส่ง] -> ฿ 0.00 | N4: =ยอดขายเดือนพฤศจิกายน[กำไร/ขาดทุน ยอดขาย]+ยอดขายเดือนพฤศจิกายน[กำไร/ขาดทุน การจัดส่ง] -> ฿ 0.00
M5: =ยอดขายเดือนพฤศจิกายน[ค่า จัดส่ง]-ยอดขายเดือนพฤศจิกายน[ค่าธรรมเนียม การจัดส่ง] -> ฿ 0.00 | N5: =ยอดขายเดือนพฤศจิกายน[กำไร/ขาดทุน ยอดขาย]+ยอดขายเดือนพฤศจิกายน[กำไร/ขาดทุน การจัดส่ง] -> ฿ 0.00
A6: กำไร/ขาดทุน ผลรวม | M6: =ยอดขายเดือนพฤศจิกายน[ค่า จัดส่ง]-ยอดขายเดือนพฤศจิกายน[ค่าธรรมเนียม การจัดส่ง] -> ฿ 0.00 | N6: =ยอดขายเดือนพฤศจิกายน[กำไร/ขาดทุน ยอดขาย]+ยอดขายเดือนพฤศจิกายน[กำไร/ขาดทุน การจัดส่ง] -> ฿ 0.00
A7: =ยอดขายเดือนพฤศจิกายน[[#Totals],[กำไร/ขาดทุน ผลรวม]] -> ฿0.00 | M7: =ยอดขายเดือนพฤศจิกายน[ค่า จัดส่ง]-ยอดขายเดือนพฤศจิกายน[ค่าธรรมเนียม การจัดส่ง] -> ฿ 0.00 | N7: =ยอดขายเดือนพฤศจิกายน[กำไร/ขาดทุน ยอดขาย]+ยอดขายเดือนพฤศจิกายน[กำไร/ขาดทุน การจัดส่ง] -> ฿ 0.00
C8: ผลรวม | D8: ="รายการที่ขายได้: "&SUBTOTAL(103,ยอดขายเดือนพฤศจิกายน[คำอธิบาย รายการ]) -> รายการที่ขายได้: 0 | E8: =SUBTOTAL(109,ยอดขายเดือนพฤศจิกายน[ราคา ซื้อ]) -> ฿ 0.00 | F8: =SUBTOTAL(109,ยอดขายเดือนพฤศจิกายน[ราคาขาย]) -> ฿ 0.00 | G8: =SUBTOTAL(109,ยอดขายเดือนพฤศจิกายน[ค่าธรรมเนียมออนไลน์]) -> ฿ 0.00 | H8: =SUBTOTAL(109,ยอดขายเดือนพฤศจิกายน[ค่าธรรมเนียม PayPal]) -> ฿ 0.00 | I8: =SUBTOTAL(109,ยอดขายเดือนพฤศจิกายน[ค่าธรรมเนียม บัตรเครดิต]) -> ฿ 0.00 | J8: =SUBTOTAL(109,ยอดขายเดือนพฤศจิกายน[ค่า จัดส่ง]) -> ฿ 0.00 | K8: =SUBTOTAL(109,ยอดขายเดือนพฤศจิกายน[ค่าธรรมเนียม การจัดส่ง]) -> ฿ 0.00 | L8: =SUBTOTAL(109,ยอดขายเดือนพฤศจิกายน[กำไร/ขาดทุน ยอดขาย]) -> ฿ 0.00 | M8: =SUBTOTAL(109,ยอดขายเดือนพฤศจิกายน[กำไร/ขาดทุน การจัดส่ง]) -> ฿ 0.00 | N8: =SUBTOTAL(109,ยอดขายเดือนพฤศจิกายน[กำไร/ขาดทุน ผลรวม]) -> ฿ 0.00
A9: กำไร/ขาดทุน แนวโน้ม

Sheet ธันวาคม
A1: ธันวาคม
A2: การขายแบบออนไลน์ | C2: รหัส การประมูล | D2: คำอธิบาย รายการ | E2: ราคา ซื้อ | F2: ราคาขาย | G2: ค่าธรรมเนียมออนไลน์ | H2: ค่าธรรมเนียม PayPal | I2: ค่าธรรมเนียม บัตรเครดิต | J2: ค่า จัดส่ง | K2: ค่าธรรมเนียม การจัดส่ง | L2: กำไร/ขาดทุน ยอดขาย | M2: กำไร/ขาดทุน การจัดส่ง | N2: กำไร/ขาดทุน ผลรวม
A3: ปี | M3: =ยอดขายเดือนธันวาคม[ค่า จัดส่ง]-ยอดขายเดือนธันวาคม[ค่าธรรมเนียม การจัดส่ง] -> ฿ 0.00 | N3: =ยอดขายเดือนธันวาคม[กำไร/ขาดทุน ยอดขาย]+ยอดขายเดือนธันวาคม[กำไร/ขาดทุน การจัดส่ง] -> ฿ 0.00
A4: =SalesYear -> 2555 | M4: =ยอดขายเดือนธันวาคม[ค่า จัดส่ง]-ยอดขายเดือนธันวาคม[ค่าธรรมเนียม การจัดส่ง] -> ฿ 0.00 | N4: =ยอดขายเดือนธันวาคม[กำไร/ขาดทุน ยอดขาย]+ยอดขายเดือนธันวาคม[กำไร/ขาดทุน การจัดส่ง] -> ฿ 0.00
M5: =ยอดขายเดือนธันวาคม[ค่า จัดส่ง]-ยอดขายเดือนธันวาคม[ค่าธรรมเนียม การจัดส่ง] -> ฿ 0.00 | N5: =ยอดขายเดือนธันวาคม[กำไร/ขาดทุน ยอดขาย]+ยอดขายเดือนธันวาคม[กำไร/ขาดทุน การจัดส่ง] -> ฿ 0.00
A6: กำไร/ขาดทุน ผลรวม | M6: =ยอดขายเดือนธันวาคม[ค่า จัดส่ง]-ยอดขายเดือนธันวาคม[ค่าธรรมเนียม การจัดส่ง] -> ฿ 0.00 | N6: =ยอดขายเดือนธันวาคม[กำไร/ขาดทุน ยอดขาย]+ยอดขายเดือนธันวาคม[กำไร/ขาดทุน การจัดส่ง] -> ฿ 0.00
A7: =ยอดขายเดือนธันวาคม[[#Totals],[กำไร/ขาดทุน ผลรวม]] -> ฿0.00 | M7: =ยอดขายเดือนธันวาคม[ค่า จัดส่ง]-ยอดขายเดือนธันวาคม[ค่าธรรมเนียม การจัดส่ง] -> ฿ 0.00 | N7: =ยอดขายเดือนธันวาคม[กำไร/ขาดทุน ยอดขาย]+ยอดขายเดือนธันวาคม[กำไร/ขาดทุน การจัดส่ง] -> ฿ 0.00
C8: ผลรวม | D8: ="รายการที่ขายได้: "&SUBTOTAL(103,ยอดขายเดือนธันวาคม[คำอธิบาย รายการ]) -> รายการที่ขายได้: 0 | E8: =SUBTOTAL(109,ยอดขายเดือนธันวาคม[ราคา ซื้อ]) -> ฿ 0.00 | F8: =SUBTOTAL(109,ยอดขายเดือนธันวาคม[ราคาขาย]) -> ฿ 0.00 | G8: =SUBTOTAL(109,ยอดขายเดือนธันวาคม[ค่าธรรมเนียมออนไลน์]) -> ฿ 0.00 | H8: =SUBTOTAL(109,ยอดขายเดือนธันวาคม[ค่าธรรมเนียม PayPal]) -> ฿ 0.00 | I8: =SUBTOTAL(109,ยอดขายเดือนธันวาคม[ค่าธรรมเนียม บัตรเครดิต]) -> ฿ 0.00 | J8: =SUBTOTAL(109,ยอดขายเดือนธันวาคม[ค่า จัดส่ง]) -> ฿ 0.00 | K8: =SUBTOTAL(109,ยอดขายเดือนธันวาคม[ค่าธรรมเนียม การจัดส่ง]) -> ฿ 0.00 | L8: =SUBTOTAL(109,ยอดขายเดือนธันวาคม[กำไร/ขาดทุน ยอดขาย]) -> ฿ 0.00 | M8: =SUBTOTAL(109,ยอดขายเดือนธันวาคม[กำไร/ขาดทุน การจัดส่ง]) -> ฿ 0.00 | N8: =SUBTOTAL(109,ยอดขายเดือนธันวาคม[กำไร/ขาดทุน ผลรวม]) -> ฿ 0.00
A9: กำไร/ขาดทุน แนวโน้ม

Sheet สรุปจนถึงปัจจุบัน
A1: สรุป
A2: จนถึงปัจจุบัน | C2: กำไร/ขาดทุน | H2: กำไร/ขาดทุน จนถึงปัจจุบัน
A3: ปี | H3: เดือน | I3: กำไร/ขาดทุน ยอดขาย | J3: กำไร/ขาดทุน การจัดส่ง | K3: กำไร/ขาดทุน ผลรวม
A4: =SalesYear -> 2555 | H4: มกราคม | I4: =ยอดขายเดือนมกราคม[[#Totals],[กำไร/ขาดทุน ยอดขาย]] -> ฿ 79.50 | J4: =ยอดขายเดือนมกราคม[[#Totals],[กำไร/ขาดทุน การจัดส่ง]] -> ฿ 9.50 | K4: =IF(AND(สรุปตั้งแต่ต้นปี[[#This Row],[กำไร/ขาดทุน ยอดขาย]]<>"",สรุปตั้งแต่ต้นปี[[#This Row],[กำไร/ขาดทุน การจัดส่ง]]<>""),สรุปตั้งแต่ต้นปี[[#This Row],[กำไร/ขาดทุน ยอดขาย]]+สรุปตั้งแต่ต้นปี[[#This Row],[กำไร/ขาดทุน การจัดส่ง]],"") -> ฿ 89.00
H5: กุมภาพันธ์ | I5: =ยอดขายเดือนกุมภาพันธ์[[#Totals],[กำไร/ขาดทุน ยอดขาย]] -> ฿ 212.30 | J5: =ยอดขายเดือนกุมภาพันธ์[[#Totals],[กำไร/ขาดทุน การจัดส่ง]] -> ฿ 12.30 | K5: =IF(AND(สรุปตั้งแต่ต้นปี[[#This Row],[กำไร/ขาดทุน ยอดขาย]]<>"",สรุปตั้งแต่ต้นปี[[#This Row],[กำไร/ขาดทุน การจัดส่ง]]<>""),สรุปตั้งแต่ต้นปี[[#This Row],[กำไร/ขาดทุน ยอดขาย]]+สรุปตั้งแต่ต้นปี[[#This Row],[กำไร/ขาดทุน การจัดส่ง]],"") -> ฿ 224.60
A6: แนวโน้มการขายรายเดือน: | H6: มีนาคม | I6: =ยอดขายเดือนมีนาคม[[#Totals],[กำไร/ขาดทุน ยอดขาย]] -> ฿ 0.00 | J6: =ยอดขายเดือนมีนาคม[[#Totals],[กำไร/ขาดทุน การจัดส่ง]] -> ฿ 0.00 | K6: =IF(AND(สรุปตั้งแต่ต้นปี[[#This Row],[กำไร/ขาดทุน ยอดขาย]]<>"",สรุปตั้งแต่ต้นปี[[#This Row],[กำไร/ขาดทุน การจัดส่ง]]<>""),สรุปตั้งแต่ต้นปี[[#This Row],[กำไร/ขาดทุน ยอดขาย]]+สรุปตั้งแต่ต้นปี[[#This Row],[กำไร/ขาดทุน การจัดส่ง]],"") -> ฿ 0.00
H7: เมษายน | I7: =ยอดขายเดือนเมษายน[[#Totals],[กำไร/ขาดทุน ยอดขาย]] -> ฿ 0.00 | J7: =ยอดขายเดือนเมษายน[[#Totals],[กำไร/ขาดทุน การจัดส่ง]] -> ฿ 0.00 | K7: =IF(AND(สรุปตั้งแต่ต้นปี[[#This Row],[กำไร/ขาดทุน ยอดขาย]]<>"",สรุปตั้งแต่ต้นปี[[#This Row],[กำไร/ขาดทุน การจัดส่ง]]<>""),สรุปตั้งแต่ต้นปี[[#This Row],[กำไร/ขาดทุน ยอดขาย]]+สรุปตั้งแต่ต้นปี[[#This Row],[กำไร/ขาดทุน การจัดส่ง]],"") -> ฿ 0.00
H8: พฤษภาคม | I8: =ยอดขายเดือนพฤษภาคม[[#Totals],[กำไร/ขาดทุน ยอดขาย]] -> ฿ 0.00 | J8: =ยอดขายเดือนพฤษภาคม[[#Totals],[กำไร/ขาดทุน การจัดส่ง]] -> ฿ 0.00 | K8: =IF(AND(สรุปตั้งแต่ต้นปี[[#This Row],[กำไร/ขาดทุน ยอดขาย]]<>"",สรุปตั้งแต่ต้นปี[[#This Row],[กำไร/ขาดทุน การจัดส่ง]]<>""),สรุปตั้งแต่ต้นปี[[#This Row],[กำไร/ขาดทุน ยอดขาย]]+สรุปตั้งแต่ต้นปี[[#This Row],[กำไร/ขาดทุน การจัดส่ง]],"") -> ฿ 0.00
H9: มิถุนายน | I9: =ยอดขายเดือนมิถุนายน[[#Totals],[กำไร/ขาดทุน ยอดขาย]] -> ฿ 0.00 | J9: =ยอดขายเดือนมิถุนายน[[#Totals],[กำไร/ขาดทุน การจัดส่ง]] -> ฿ 0.00 | K9: =IF(AND(สรุปตั้งแต่ต้นปี[[#This Row],[กำไร/ขาดทุน ยอดขาย]]<>"",สรุปตั้งแต่ต้นปี[[#This Row],[กำไร/ขาดทุน การจัดส่ง]]<>""),สรุปตั้งแต่ต้นปี[[#This Row],[กำไร/ขาดทุน ยอดขาย]]+สรุปตั้งแต่ต้นปี[[#This Row],[กำไร/ขาดทุน การจัดส่ง]],"") -> ฿ 0.00
H10: กรกฎาคม | I10: =ยอดขายเดือนกรกฎาคม[[#Totals],[กำไร/ขาดทุน ยอดขาย]] -> ฿ 0.00 | J10: =ยอดขายเดือนกรกฎาคม[[#Totals],[กำไร/ขาดทุน การจัดส่ง]] -> ฿ 0.00 | K10: =IF(AND(สรุปตั้งแต่ต้นปี[[#This Row],[กำไร/ขาดทุน ยอดขาย]]<>"",สรุปตั้งแต่ต้นปี[[#This Row],[กำไร/ขาดทุน การจัดส่ง]]<>""),สรุปตั้งแต่ต้นปี[[#This Row],[กำไร/ขาดทุน ยอดขาย]]+สรุปตั้งแต่ต้นปี[[#This Row],[กำไร/ขาดทุน การจัดส่ง]],"") -> ฿ 0.00
H11: สิงหาคม | I11: =ยอดขายเดือนสิงหาคม[[#Totals],[กำไร/ขาดทุน ยอดขาย]] -> ฿ 0.00 | J11: =ยอดขายเดือนสิงหาคม[[#Totals],[กำไร/ขาดทุน การจัดส่ง]] -> ฿ 0.00 | K11: =IF(AND(สรุปตั้งแต่ต้นปี[[#This Row],[กำไร/ขาดทุน ยอดขาย]]<>"",สรุปตั้งแต่ต้นปี[[#This Row],[กำไร/ขาดทุน การจัดส่ง]]<>""),สรุปตั้งแต่ต้นปี[[#This Row],[กำไร/ขาดทุน ยอดขาย]]+สรุปตั้งแต่ต้นปี[[#This Row],[กำไร/ขาดทุน การจัดส่ง]],"") -> ฿ 0.00
H12: กันยายน | I12: =ยอดขายเดือนกันยายน[[#Totals],[กำไร/ขาดทุน ยอดขาย]] -> ฿ 0.00 | J12: =ยอดขายเดือนกันยายน[[#Totals],[กำไร/ขาดทุน การจัดส่ง]] -> ฿ 0.00 | K12: =IF(AND(สรุปตั้งแต่ต้นปี[[#This Row],[กำไร/ขาดทุน ยอดขาย]]<>"",สรุปตั้งแต่ต้นปี[[#This Row],[กำไร/ขาดทุน การจัดส่ง]]<>""),สรุปตั้งแต่ต้นปี[[#This Row],[กำไร/ขาดทุน ยอดขาย]]+สรุปตั้งแต่ต้นปี[[#This Row],[กำไร/ขาดทุน การจัดส่ง]],"") -> ฿ 0.00
H13: ตุลาคม | I13: =ยอดขายเดือนตุลาคม[[#Totals],[กำไร/ขาดทุน ยอดขาย]] -> ฿ 0.00 | J13: =ยอดขายเดือนตุลาคม[[#Totals],[กำไร/ขาดทุน การจัดส่ง]] -> ฿ 0.00 | K13: =IF(AND(สรุปตั้งแต่ต้นปี[[#This Row],[กำไร/ขาดทุน ยอดขาย]]<>"",สรุปตั้งแต่ต้นปี[[#This Row],[กำไร/ขาดทุน การจัดส่ง]]<>""),สรุปตั้งแต่ต้นปี[[#This Row],[กำไร/ขาดทุน ยอดขาย]]+สรุปตั้งแต่ต้นปี[[#This Row],[กำไร/ขาดทุน การจัดส่ง]],"") -> ฿ 0.00
H14: พฤศจิกายน | I14: =ยอดขายเดือนพฤศจิกายน[[#Totals],[กำไร/ขาดทุน ยอดขาย]] -> ฿ 0.00 | J14: =ยอดขายเดือนพฤศจิกายน[[#Totals],[กำไร/ขาดทุน การจัดส่ง]] -> ฿ 0.00 | K14: =IF(AND(สรุปตั้งแต่ต้นปี[[#This Row],[กำไร/ขาดทุน ยอดขาย]]<>"",สรุปตั้งแต่ต้นปี[[#This Row],[กำไร/ขาดทุน การจัดส่ง]]<>""),สรุปตั้งแต่ต้นปี[[#This Row],[กำไร/ขาดทุน ยอดขาย]]+สรุปตั้งแต่ต้นปี[[#This Row],[กำไร/ขาดทุน การจัดส่ง]],"") -> ฿ 0.00
H15: ธันวาคม | I15: =ยอดขายเดือนธันวาคม[[#Totals],[กำไร/ขาดทุน ยอดขาย]] -> ฿ 0.00 | J15: =ยอดขายเดือนธันวาคม[[#Totals],[กำไร/ขาดทุน การจัดส่ง]] -> ฿ 0.00 | K15: =IF(AND(สรุปตั้งแต่ต้นปี[[#This Row],[กำไร/ขาดทุน ยอดขาย]]<>"",สรุปตั้งแต่ต้นปี[[#This Row],[กำไร/ขาดทุน การจัดส่ง]]<>""),สรุปตั้งแต่ต้นปี[[#This Row],[กำไร/ขาดทุน ยอดขาย]]+สรุปตั้งแต่ต้นปี[[#This Row],[กำไร/ขาดทุน การจัดส่ง]],"") -> ฿ 0.00
H16: ผลรวม | I16: =SUBTOTAL(109,สรุปตั้งแต่ต้นปี[กำไร/ขาดทุน ยอดขาย]) -> ฿ 291.80 | J16: =SUBTOTAL(109,สรุปตั้งแต่ต้นปี[กำไร/ขาดทุน การจัดส่ง]) -> ฿ 21.80 | K16: =SUBTOTAL(109,สรุปตั้งแต่ต้นปี[กำไร/ขาดทุน ผลรวม]) -> ฿ 313.60
